[Event "Titled Tuesday Blitz April 05 Early 2022"]
[White "Pischal, Yulia"]
[Black "Demin, Vladimir"]
[WhiteFideId "14102390"]
[BlackFideId "4167457"]
[WhiteElo "1931"]
[BlackElo "2447"]
[Result "1-0"]
[Round "06"]
[TimeControl "180+1"]
[Date "2022.04.05"]
[WhiteClock "0:00:09"]
[BlackClock "0:00:01"]

1. e4 {[%clk 0:03:00]}  c5 {[%clk 0:02:59]} 2. d3 {[%clk 0:02:57]}  Nc6 {[%clk 0:02:46]} 3. Nd2 {[%clk 0:02:56]}  g6 {[%clk 0:02:46]} 4. g3 {[%clk 0:02:55]}  Bg7 {[%clk 0:02:46]} 5. Bg2 {[%clk 0:02:56]}  d6 {[%clk 0:02:46]} 6. f4 {[%clk 0:02:56]}  Nf6 {[%clk 0:02:44]} 7. Ngf3 {[%clk 0:02:55]}  O-O {[%clk 0:02:44]} 8. O-O {[%clk 0:02:55]}  e5 {[%clk 0:02:44]} 9. c3 {[%clk 0:02:53]}  h6 {[%clk 0:02:44]} 10. Rf2 {[%clk 0:02:51]}  Be6 {[%clk 0:02:43]} 11. Nf1 {[%clk 0:02:51]}  Nd7 {[%clk 0:02:39]} 12. Nh4 {[%clk 0:02:47]}  g5 {[%clk 0:02:16]} 13. fxg5 {[%clk 0:02:43]}  hxg5 {[%clk 0:02:17]} 14. Nf5 {[%clk 0:02:42]}  Bxf5 {[%clk 0:02:14]} 15. Rxf5 {[%clk 0:02:41]}  f6 {[%clk 0:02:11]} 16. Ne3 {[%clk 0:02:37]}  Ne7 {[%clk 0:02:11]} 17. Rf1 {[%clk 0:02:35]}  Qe8 {[%clk 0:02:06]} 18. Bh3 {[%clk 0:02:34]}  Rd8 {[%clk 0:01:38]} 19. Bd2 {[%clk 0:02:15]}  Qg6 {[%clk 0:01:34]} 20. Be6+ {[%clk 0:02:11]}  Kh8 {[%clk 0:01:32]} 21. Qg4 {[%clk 0:02:09]}  Nb6 {[%clk 0:01:26]} 22. Qh3+ {[%clk 0:01:51]}  Qh6 {[%clk 0:01:24]} 23. Qg4 {[%clk 0:01:45]}  Nbc8 {[%clk 0:01:20]} 24. Kg2 {[%clk 0:01:43]}  Ng6 {[%clk 0:00:51]} 25. Nf5 {[%clk 0:01:33]}  Qh7 {[%clk 0:00:50]} 26. Bxc8 {[%clk 0:01:23]}  Rxc8 {[%clk 0:00:48]} 27. Nxd6 {[%clk 0:01:23]}  Rc7 {[%clk 0:00:46]} 28. Nf5 {[%clk 0:01:17]}  Rd7 {[%clk 0:00:45]} 29. Rf3 {[%clk 0:01:17]}  Rfd8 {[%clk 0:00:39]} 30. Re1 {[%clk 0:01:02]}  Rxd3 {[%clk 0:00:38]} 31. Rxd3 {[%clk 0:01:02]}  Rxd3 {[%clk 0:00:39]} 32. Re2 {[%clk 0:01:00]}  Kg8 {[%clk 0:00:34]} 33. Ne3 {[%clk 0:00:56]}  Ne7 {[%clk 0:00:23]} 34. Qe6+ {[%clk 0:00:53]}  Kf8 {[%clk 0:00:22]} 35. Nc4 {[%clk 0:00:44]}  Qg8 {[%clk 0:00:18]} 36. Qxg8+ {[%clk 0:00:39]}  Kxg8 {[%clk 0:00:18]} 37. Be3 {[%clk 0:00:35]}  b6 {[%clk 0:00:18]} 38. Rd2 {[%clk 0:00:33]}  Rxd2+ {[%clk 0:00:18]} 39. Bxd2 {[%clk 0:00:32]}  Nc8 {[%clk 0:00:18]} 40. Kf3 {[%clk 0:00:31]}  Kf7 {[%clk 0:00:18]} 41. Ne3 {[%clk 0:00:29]}  Ne7 {[%clk 0:00:17]} 42. h4 {[%clk 0:00:28]}  Bh6 {[%clk 0:00:16]} 43. Ng4 {[%clk 0:00:27]}  Kg6 {[%clk 0:00:16]} 44. Nxh6 {[%clk 0:00:27]}  Kxh6 {[%clk 0:00:16]} 45. hxg5+ {[%clk 0:00:27]}  fxg5 {[%clk 0:00:17]} 46. Kg4 {[%clk 0:00:27]}  Kg6 {[%clk 0:00:16]} 47. Bxg5 {[%clk 0:00:27]}  Nc8 {[%clk 0:00:16]} 48. Bd8 {[%clk 0:00:26]}  Nd6 {[%clk 0:00:16]} 49. Kf3 {[%clk 0:00:26]}  Nc4 {[%clk 0:00:15]} 50. b3 {[%clk 0:00:26]}  Nd2+ {[%clk 0:00:15]} 51. Ke3 {[%clk 0:00:26]}  Nf1+ {[%clk 0:00:16]} 52. Kf2 {[%clk 0:00:25]}  Nd2 {[%clk 0:00:16]} 53. Ke3 {[%clk 0:00:22]}  Nf1+ {[%clk 0:00:15]} 54. Kd3 {[%clk 0:00:21]}  Nxg3 {[%clk 0:00:15]} 55. Bc7 {[%clk 0:00:22]}  Kf6 {[%clk 0:00:15]} 56. Bb8 {[%clk 0:00:21]}  a6 {[%clk 0:00:15]} 57. Ba7 {[%clk 0:00:22]}  b5 {[%clk 0:00:14]} 58. Bxc5 {[%clk 0:00:22]}  Ke6 {[%clk 0:00:14]} 59. a4 {[%clk 0:00:21]}  Nh5 {[%clk 0:00:14]} 60. axb5 {[%clk 0:00:21]}  axb5 {[%clk 0:00:13]} 61. c4 {[%clk 0:00:21]}  Nf4+ {[%clk 0:00:13]} 62. Kc3 {[%clk 0:00:20]}  bxc4 {[%clk 0:00:11]} 63. Kxc4 {[%clk 0:00:21]}  Kd7 {[%clk 0:00:11]} 64. Kb5 {[%clk 0:00:20]}  Nd3 {[%clk 0:00:09]} 65. b4 {[%clk 0:00:20]}  Kc7 {[%clk 0:00:08]} 66. Be3 {[%clk 0:00:19]}  Ne1 {[%clk 0:00:07]} 67. Kc5 {[%clk 0:00:19]}  Nc2 {[%clk 0:00:07]} 68. Bf2 {[%clk 0:00:18]}  Na3 {[%clk 0:00:06]} 69. Bg3 {[%clk 0:00:18]}  Kb7 {[%clk 0:00:04]} 70. Bxe5 {[%clk 0:00:18]}  Nc2 {[%clk 0:00:04]} 71. Bd6 {[%clk 0:00:18]}  Ne3 {[%clk 0:00:04]} 72. e5 {[%clk 0:00:18]}  Nf5 {[%clk 0:00:04]} 73. e6 {[%clk 0:00:17]}  Kc8 {[%clk 0:00:05]} 74. Kd5 {[%clk 0:00:18]}  Ne3+ {[%clk 0:00:05]} 75. Kc6 {[%clk 0:00:18]}  Kd8 {[%clk 0:00:04]} 76. b5 {[%clk 0:00:18]}  Nc4 {[%clk 0:00:04]} 77. b6 {[%clk 0:00:17]}  Na5+ {[%clk 0:00:04]} 78. Kd5 {[%clk 0:00:16]}  Nb7 {[%clk 0:00:04]} 79. Ke5 {[%clk 0:00:15]}  Ke8 {[%clk 0:00:04]} 80. Bc7 {[%clk 0:00:15]}  Na5 {[%clk 0:00:04]} 81. Kd5 {[%clk 0:00:15]}  Ke7 {[%clk 0:00:04]} 82. Ke5 {[%clk 0:00:14]}  Nc6+ {[%clk 0:00:04]} 83. Kd5 {[%clk 0:00:14]}  Na5 {[%clk 0:00:04]} 84. Bd6+ {[%clk 0:00:14]}  Ke8 {[%clk 0:00:04]} 85. Kc5 {[%clk 0:00:14]}  Kd8 {[%clk 0:00:04]} 86. e7+ {[%clk 0:00:13]}  Kd7 {[%clk 0:00:03]} 87. Kd5 {[%clk 0:00:13]}  Nb7 {[%clk 0:00:03]} 88. Bb4 {[%clk 0:00:12]}  Ke8 {[%clk 0:00:02]} 89. Ke6 {[%clk 0:00:12]}  Na5 {[%clk 0:00:01]} 90. Kf6 {[%clk 0:00:10]}  Nb7 {[%clk 0:00:01]} 91. Ke6 {[%clk 0:00:09]}  Na5 {[%clk 0:00:01]} 92. b7 {[%clk 0:00:10]}  Nxb7 {[%clk 0:00:01]} 93. Kf6 {[%clk 0:00:09]} 1-0


[Site "https://www.chess.com"]

[Event "Titled Tuesday Blitz April 05 Early 2022"]
[White "Polok, Kacper"]
[Black "Krysa, Leandro"]
[WhiteFideId "1137158"]
[BlackFideId "116807"]
[WhiteElo "2224"]
[BlackElo "2490"]
[Result "0-1"]
[Round "06"]
[TimeControl "180+1"]
[Date "2022.04.05"]
[WhiteClock "0:00:07"]
[BlackClock "0:00:02"]

1. e4 {[%clk 0:02:57]}  e5 {[%clk 0:02:58]} 2. Nf3 {[%clk 0:02:55]}  Nf6 {[%clk 0:02:58]} 3. d4 {[%clk 0:02:50]}  Nxe4 {[%clk 0:02:54]} 4. Nxe5 {[%clk 0:02:45]}  d6 {[%clk 0:02:35]} 5. Nf3 {[%clk 0:02:36]}  d5 {[%clk 0:02:34]} 6. Bd3 {[%clk 0:02:34]}  Be7 {[%clk 0:02:33]} 7. O-O {[%clk 0:02:34]}  Nc6 {[%clk 0:02:33]} 8. Nc3 {[%clk 0:02:31]}  Bf5 {[%clk 0:02:13]} 9. Re1 {[%clk 0:02:27]}  Nxc3 {[%clk 0:02:11]} 10. bxc3 {[%clk 0:02:26]}  Bxd3 {[%clk 0:02:12]} 11. Qxd3 {[%clk 0:02:27]}  O-O {[%clk 0:02:11]} 12. c4 {[%clk 0:02:26]}  dxc4 {[%clk 0:02:07]} 13. Qxc4 {[%clk 0:02:26]}  Bf6 {[%clk 0:02:07]} 14. c3 {[%clk 0:02:22]}  Qd7 {[%clk 0:02:03]} 15. Bf4 {[%clk 0:02:18]}  b6 {[%clk 0:01:55]} 16. Ne5 {[%clk 0:02:16]}  Nxe5 {[%clk 0:01:48]} 17. Bxe5 {[%clk 0:02:16]}  Bxe5 {[%clk 0:01:48]} 18. Rxe5 {[%clk 0:02:16]}  Rfe8 {[%clk 0:01:46]} 19. Rae1 {[%clk 0:02:11]}  c6 {[%clk 0:01:43]} 20. h3 {[%clk 0:02:08]}  Rxe5 {[%clk 0:01:40]} 21. Rxe5 {[%clk 0:02:05]}  Re8 {[%clk 0:01:41]} 22. Qe2 {[%clk 0:02:04]}  Kf8 {[%clk 0:01:37]} 23. Rxe8+ {[%clk 0:01:46]}  Qxe8 {[%clk 0:01:37]} 24. Qf3 {[%clk 0:01:47]}  Qe6 {[%clk 0:01:35]} 25. g4 {[%clk 0:01:44]}  h6 {[%clk 0:01:29]} 26. Kg2 {[%clk 0:01:41]}  Ke7 {[%clk 0:01:23]} 27. Kg3 {[%clk 0:01:39]}  Kd7 {[%clk 0:01:20]} 28. a4 {[%clk 0:01:36]}  g5 {[%clk 0:01:19]} 29. Qd3 {[%clk 0:01:34]}  Kc7 {[%clk 0:01:10]} 30. c4 {[%clk 0:01:33]}  a5 {[%clk 0:01:03]} 31. Kg2 {[%clk 0:01:30]}  Kd6 {[%clk 0:01:00]} 32. Qg3+ {[%clk 0:01:28]}  Kd7 {[%clk 0:01:00]} 33. Qd3 {[%clk 0:01:21]}  Ke7 {[%clk 0:00:54]} 34. Kg3 {[%clk 0:01:09]}  Qd6+ {[%clk 0:00:53]} 35. Kg2 {[%clk 0:01:10]}  Qf4 {[%clk 0:00:53]} 36. d5 {[%clk 0:00:59]}  cxd5 {[%clk 0:00:47]} 37. Qxd5 {[%clk 0:00:58]}  Qd6 {[%clk 0:00:46]} 38. Qb7+ {[%clk 0:00:55]}  Kf6 {[%clk 0:00:43]} 39. Kf3 {[%clk 0:00:55]}  Qd3+ {[%clk 0:00:38]} 40. Kg2 {[%clk 0:00:53]}  Qd6 {[%clk 0:00:38]} 41. Kf3 {[%clk 0:00:53]}  Qc5 {[%clk 0:00:31]} 42. Kg2 {[%clk 0:00:50]}  Ke6 {[%clk 0:00:21]} 43. Qe4+ {[%clk 0:00:50]}  Kd6 {[%clk 0:00:18]} 44. Qd3+ {[%clk 0:00:42]}  Ke5 {[%clk 0:00:19]} 45. Kf3 {[%clk 0:00:40]}  Qc6+ {[%clk 0:00:17]} 46. Ke3 {[%clk 0:00:41]}  Qc5+ {[%clk 0:00:11]} 47. Kf3 {[%clk 0:00:41]}  Qc6+ {[%clk 0:00:07]} 48. Ke3 {[%clk 0:00:41]}  Qxa4 {[%clk 0:00:07]} 49. Qd4+ {[%clk 0:00:27]}  Ke6 {[%clk 0:00:06]} 50. Qxb6+ {[%clk 0:00:28]}  Ke7 {[%clk 0:00:06]} 51. c5 {[%clk 0:00:28]}  Qa3+ {[%clk 0:00:06]} 52. Ke4 {[%clk 0:00:26]}  Qa4+ {[%clk 0:00:03]} 53. Ke5 {[%clk 0:00:22]}  Qa1+ {[%clk 0:00:03]} 54. Kd5 {[%clk 0:00:22]}  Qa2+ {[%clk 0:00:03]} 55. Kc6 {[%clk 0:00:20]}  a4 {[%clk 0:00:04]} 56. Kb7 {[%clk 0:00:18]}  a3 {[%clk 0:00:03]} 57. c6 {[%clk 0:00:18]}  Qd5 {[%clk 0:00:03]} 58. Qb4+ {[%clk 0:00:19]}  Qd6 {[%clk 0:00:02]} 59. Qxd6+ {[%clk 0:00:17]}  Kxd6 {[%clk 0:00:03]} 60. c7 {[%clk 0:00:18]}  a2 {[%clk 0:00:04]} 61. c8=Q {[%clk 0:00:19]}  a1=Q {[%clk 0:00:05]} 62. Qf5 {[%clk 0:00:15]}  Qb2+ {[%clk 0:00:04]} 63. Ka6 {[%clk 0:00:07]}  Qe5 {[%clk 0:00:04]} 64. Qxf7 {[%clk 0:00:07]}  Qa1+ {[%clk 0:00:02]} 65. Kb7 {[%clk 0:00:07]}  Qb2+ {[%clk 0:00:03]} 66. Kc8 {[%clk 0:00:07]}  Qc3+ {[%clk 0:00:03]} 67. Kd8 {[%clk 0:00:07]}  Qa5+ {[%clk 0:00:03]} 68. Ke8 {[%clk 0:00:07]}  Qa8# {[%clk 0:00:02]} 0-1


[Site "https://www.chess.com"]

[Event "Titled Tuesday Blitz April 05 Early 2022"]
[White "Prado Lobo, Jonas"]
[Black "Shtyka, Sergey"]
[WhiteFideId "32050666"]
[BlackFideId "4138465"]
[WhiteElo "2214"]
[BlackElo "2014"]
[Result "0-1"]
[Round "06"]
[TimeControl "180+1"]
[Date "2022.04.05"]
[WhiteClock "0:00:03"]
[BlackClock "0:00:13"]

1. d4 {[%clk 0:03:00]}  c5 {[%clk 0:02:56]} 2. e4 {[%clk 0:02:57]}  cxd4 {[%clk 0:02:55]} 3. Nf3 {[%clk 0:02:57]}  Nc6 {[%clk 0:02:55]} 4. Nxd4 {[%clk 0:02:57]}  g6 {[%clk 0:02:55]} 5. Nxc6 {[%clk 0:02:57]}  dxc6 {[%clk 0:02:52]} 6. Qxd8+ {[%clk 0:02:56]}  Kxd8 {[%clk 0:02:53]} 7. Bc4 {[%clk 0:02:56]}  e6 {[%clk 0:02:47]} 8. Bd2 {[%clk 0:02:47]}  Bg7 {[%clk 0:02:47]} 9. Bc3 {[%clk 0:02:48]}  Bxc3+ {[%clk 0:02:46]} 10. Nxc3 {[%clk 0:02:49]}  Ne7 {[%clk 0:02:42]} 11. O-O-O+ {[%clk 0:02:42]}  Kc7 {[%clk 0:02:42]} 12. e5 {[%clk 0:02:39]}  Nd5 {[%clk 0:02:26]} 13. Ne4 {[%clk 0:02:37]}  Bd7 {[%clk 0:02:15]} 14. Rd3 {[%clk 0:02:11]}  b5 {[%clk 0:02:10]} 15. Bb3 {[%clk 0:01:53]}  Nf4 {[%clk 0:01:37]} 16. Rf3 {[%clk 0:01:47]}  Ne2+ {[%clk 0:01:26]} 17. Kd1 {[%clk 0:01:37]}  Nd4 {[%clk 0:01:26]} 18. Rxf7 {[%clk 0:01:36]}  Nxb3 {[%clk 0:01:26]} 19. axb3 {[%clk 0:01:27]}  Raf8 {[%clk 0:01:25]} 20. Rxf8 {[%clk 0:01:23]}  Rxf8 {[%clk 0:01:25]} 21. Nf6 {[%clk 0:01:24]}  h6 {[%clk 0:01:19]} 22. Ke2 {[%clk 0:01:21]}  c5 {[%clk 0:01:19]} 23. Rd1 {[%clk 0:01:20]}  Bc6 {[%clk 0:01:18]} 24. f3 {[%clk 0:01:05]}  Rd8 {[%clk 0:01:18]} 25. Rxd8 {[%clk 0:00:51]}  Kxd8 {[%clk 0:01:18]} 26. Ke3 {[%clk 0:00:47]}  a5 {[%clk 0:01:12]} 27. Kf4 {[%clk 0:00:42]}  c4 {[%clk 0:01:06]} 28. bxc4 {[%clk 0:00:40]}  bxc4 {[%clk 0:01:05]} 29. c3 {[%clk 0:00:38]}  Kc7 {[%clk 0:01:05]} 30. Ng8 {[%clk 0:00:38]}  Kb6 {[%clk 0:00:56]} 31. Nxh6 {[%clk 0:00:30]}  Kb5 {[%clk 0:00:57]} 32. Nf7 {[%clk 0:00:28]}  Ka4 {[%clk 0:00:56]} 33. Nd6 {[%clk 0:00:25]}  Kb3 {[%clk 0:00:54]} 34. g4 {[%clk 0:00:20]}  a4 {[%clk 0:00:52]} 35. h4 {[%clk 0:00:19]}  Kxb2 {[%clk 0:00:43]} 36. Nxc4+ {[%clk 0:00:18]}  Kxc3 {[%clk 0:00:44]} 37. Na3 {[%clk 0:00:15]}  Kb3 {[%clk 0:00:25]} 38. h5 {[%clk 0:00:15]}  gxh5 {[%clk 0:00:23]} 39. gxh5 {[%clk 0:00:15]}  Be8 {[%clk 0:00:20]} 40. h6 {[%clk 0:00:11]}  Bg6 {[%clk 0:00:20]} 41. Nb5 {[%clk 0:00:11]}  Kb4 {[%clk 0:00:19]} 42. Nd4 {[%clk 0:00:11]}  a3 {[%clk 0:00:19]} 43. Kg5 {[%clk 0:00:09]}  Bh7 {[%clk 0:00:15]} 44. Kf6 {[%clk 0:00:04]}  a2 {[%clk 0:00:14]} 45. Kg7 {[%clk 0:00:03]}  Bd3 {[%clk 0:00:13]} 0-1


[Site "https://www.chess.com"]

[Event "Titled Tuesday Blitz April 05 Early 2022"]
[White "Prieto Aranguren, Alain"]
[Black "Zavgorodniy, Sergiy"]
[WhiteFideId "2268906"]
[BlackFideId "14110148"]
[WhiteElo "2235"]
[BlackElo "2420"]
[Result "0-1"]
[Round "06"]
[TimeControl "180+1"]
[Date "2022.04.05"]
[WhiteClock "0:01:51"]
[BlackClock "0:01:45"]

1. d4 {[%clk 0:02:55]}  Nf6 {[%clk 0:02:59]} 2. c4 {[%clk 0:02:55]}  e6 {[%clk 0:02:59]} 3. Nc3 {[%clk 0:02:55]}  Bb4 {[%clk 0:02:59]} 4. e3 {[%clk 0:02:55]}  b6 {[%clk 0:02:57]} 5. Ne2 {[%clk 0:02:54]}  Ne4 {[%clk 0:02:56]} 6. Qc2 {[%clk 0:02:53]}  Bb7 {[%clk 0:02:54]} 7. a3 {[%clk 0:02:50]}  Bxc3+ {[%clk 0:02:53]} 8. Nxc3 {[%clk 0:02:50]}  Nxc3 {[%clk 0:02:52]} 9. Qxc3 {[%clk 0:02:50]}  Qh4 {[%clk 0:02:50]} 10. b4 {[%clk 0:02:48]}  O-O {[%clk 0:02:48]} 11. Bb2 {[%clk 0:02:46]}  d6 {[%clk 0:02:43]} 12. c5 {[%clk 0:02:42]}  Bd5 {[%clk 0:02:34]} 13. g3 {[%clk 0:02:32]}  Qh6 {[%clk 0:02:20]} 14. Rg1 {[%clk 0:02:24]}  Qxh2 {[%clk 0:02:18]} 15. e4 {[%clk 0:02:24]}  Bxe4 {[%clk 0:02:13]} 16. d5 {[%clk 0:02:24]}  e5 {[%clk 0:02:11]} 17. Qe3 {[%clk 0:02:15]}  Qxg1 {[%clk 0:02:06]} 18. Qxe4 {[%clk 0:02:14]}  bxc5 {[%clk 0:02:01]} 19. bxc5 {[%clk 0:02:11]}  Nd7 {[%clk 0:02:00]} 20. cxd6 {[%clk 0:02:00]}  cxd6 {[%clk 0:01:59]} 21. O-O-O {[%clk 0:01:59]}  Qxf2 {[%clk 0:01:55]} 22. Bd3 {[%clk 0:01:57]}  g6 {[%clk 0:01:53]} 23. Rh1 {[%clk 0:01:55]}  Rab8 {[%clk 0:01:48]} 24. Bc3 {[%clk 0:01:51]}  Rfc8 {[%clk 0:01:45]} 0-1


[Site "https://www.chess.com"]

[Event "Titled Tuesday Blitz April 05 Early 2022"]
[White "Ronka, Erik"]
[Black "Terletsky, Oleg"]
[WhiteFideId "505080"]
[BlackFideId "14116774"]
[WhiteElo "2264"]
[BlackElo "2064"]
[Result "1-0"]
[Round "06"]
[TimeControl "180+1"]
[Date "2022.04.05"]
[WhiteClock "0:00:19"]
[BlackClock "0:00:09"]

1. e4 {[%clk 0:03:00]}  e5 {[%clk 0:02:59]} 2. Bc4 {[%clk 0:03:00]}  Nc6 {[%clk 0:02:58]} 3. Nc3 {[%clk 0:03:00]}  Nf6 {[%clk 0:02:58]} 4. d3 {[%clk 0:03:00]}  Bc5 {[%clk 0:02:58]} 5. f4 {[%clk 0:03:00]}  d6 {[%clk 0:02:56]} 6. Nf3 {[%clk 0:03:00]}  Bg4 {[%clk 0:02:56]} 7. Na4 {[%clk 0:03:00]}  Bb6 {[%clk 0:02:56]} 8. Nxb6 {[%clk 0:03:00]}  axb6 {[%clk 0:02:56]} 9. c3 {[%clk 0:02:55]}  O-O {[%clk 0:02:50]} 10. O-O {[%clk 0:02:54]}  exf4 {[%clk 0:02:47]} 11. Bxf4 {[%clk 0:02:50]}  d5 {[%clk 0:02:47]} 12. exd5 {[%clk 0:02:43]}  Nxd5 {[%clk 0:02:48]} 13. Bxd5 {[%clk 0:02:21]}  Qxd5 {[%clk 0:02:49]} 14. Bxc7 {[%clk 0:02:21]}  Rxa2 {[%clk 0:02:05]} 15. Rxa2 {[%clk 0:02:16]}  Qxa2 {[%clk 0:02:05]} 16. Qc2 {[%clk 0:01:48]}  Qa5 {[%clk 0:01:23]} 17. Qf2 {[%clk 0:01:38]}  Qd5 {[%clk 0:01:17]} 18. Qxb6 {[%clk 0:01:16]}  Qxd3 {[%clk 0:01:12]} 19. Qxb7 {[%clk 0:01:13]}  Qe3+ {[%clk 0:01:00]} 20. Rf2 {[%clk 0:00:50]}  Qc1+ {[%clk 0:00:49]} 21. Rf1 {[%clk 0:00:50]}  Qe3+ {[%clk 0:00:49]} 22. Kh1 {[%clk 0:00:45]}  Bxf3 {[%clk 0:00:49]} 23. gxf3 {[%clk 0:00:46]}  Qe2 {[%clk 0:00:49]} 24. Kg1 {[%clk 0:00:45]}  Qe3+ {[%clk 0:00:41]} 25. Kg2 {[%clk 0:00:42]}  Ne5 {[%clk 0:00:24]} 26. Qe4 {[%clk 0:00:34]}  Qg5+ {[%clk 0:00:22]} 27. Kh1 {[%clk 0:00:33]}  Ng6 {[%clk 0:00:16]} 28. Bg3 {[%clk 0:00:27]}  h5 {[%clk 0:00:15]} 29. f4 {[%clk 0:00:25]}  Qg4 {[%clk 0:00:15]} 30. Qf3 {[%clk 0:00:25]}  Qh3 {[%clk 0:00:14]} 31. f5 {[%clk 0:00:23]}  Ne7 {[%clk 0:00:13]} 32. Bd6 {[%clk 0:00:19]}  Qxf3+ {[%clk 0:00:09]} 33. Rxf3 {[%clk 0:00:20]}  Re8 {[%clk 0:00:09]} 34. Re3 {[%clk 0:00:19]} 1-0


[Site "https://www.chess.com"]

[Event "Titled Tuesday Blitz April 05 Early 2022"]
[White "Samaganova, Aleksandra"]
[Black "Decuigniere, Tom"]
[WhiteFideId "13800221"]
[BlackFideId "26093820"]
[WhiteElo "1859"]
[BlackElo "1997"]
[Result "1-0"]
[Round "06"]
[TimeControl "180+1"]
[Date "2022.04.05"]
[WhiteClock "0:00:15"]
[BlackClock "0:00:02"]

1. c4 {[%clk 0:03:00]}  Nf6 {[%clk 0:02:56]} 2. Nc3 {[%clk 0:02:58]}  e5 {[%clk 0:02:56]} 3. Nf3 {[%clk 0:02:57]}  d6 {[%clk 0:02:55]} 4. e3 {[%clk 0:02:56]}  Be6 {[%clk 0:02:51]} 5. d4 {[%clk 0:02:56]}  Nbd7 {[%clk 0:02:45]} 6. Be2 {[%clk 0:02:53]}  g6 {[%clk 0:02:31]} 7. O-O {[%clk 0:02:52]}  Bg7 {[%clk 0:02:30]} 8. Rb1 {[%clk 0:02:43]}  a5 {[%clk 0:02:22]} 9. a3 {[%clk 0:02:40]}  O-O {[%clk 0:02:21]} 10. b4 {[%clk 0:02:40]}  axb4 {[%clk 0:02:22]} 11. axb4 {[%clk 0:02:41]}  exd4 {[%clk 0:02:05]} 12. exd4 {[%clk 0:02:38]}  d5 {[%clk 0:02:05]} 13. c5 {[%clk 0:02:32]}  Bf5 {[%clk 0:01:53]} 14. Rb3 {[%clk 0:02:27]}  Re8 {[%clk 0:01:32]} 15. Re1 {[%clk 0:02:20]}  c6 {[%clk 0:01:18]} 16. b5 {[%clk 0:02:18]}  Ne4 {[%clk 0:01:17]} 17. bxc6 {[%clk 0:02:09]}  Nxc3 {[%clk 0:01:09]} 18. Rxc3 {[%clk 0:02:09]}  bxc6 {[%clk 0:01:10]} 19. Bd3 {[%clk 0:01:52]}  Bxd3 {[%clk 0:00:49]} 20. Rxd3 {[%clk 0:01:47]}  Nf8 {[%clk 0:00:29]} 21. Bg5 {[%clk 0:01:37]}  Qc7 {[%clk 0:00:23]} 22. Bh4 {[%clk 0:01:27]}  Ne6 {[%clk 0:00:21]} 23. Bg3 {[%clk 0:01:24]}  Qa5 {[%clk 0:00:21]} 24. Rde3 {[%clk 0:01:17]}  Ra7 {[%clk 0:00:15]} 25. Be5 {[%clk 0:01:14]}  Rea8 {[%clk 0:00:13]} 26. Bxg7 {[%clk 0:01:10]}  Kxg7 {[%clk 0:00:14]} 27. Ne5 {[%clk 0:01:09]}  Qb5 {[%clk 0:00:07]} 28. Qg4 {[%clk 0:00:48]}  Ra1 {[%clk 0:00:05]} 29. Nxf7 {[%clk 0:00:26]}  Rxe1+ {[%clk 0:00:03]} 30. Rxe1 {[%clk 0:00:25]}  Qb4 {[%clk 0:00:04]} 31. Qxe6 {[%clk 0:00:22]}  Ra7 {[%clk 0:00:02]} 32. Ng5 {[%clk 0:00:20]}  h6 {[%clk 0:00:02]} 33. Nf3 {[%clk 0:00:20]}  Rf7 {[%clk 0:00:02]} 34. Qe5+ {[%clk 0:00:20]}  Kh7 {[%clk 0:00:02]} 35. h3 {[%clk 0:00:20]}  Rf5 {[%clk 0:00:03]} 36. Qe7+ {[%clk 0:00:19]}  Kg8 {[%clk 0:00:04]} 37. Qe8+ {[%clk 0:00:18]}  Rf8 {[%clk 0:00:04]} 38. Qxg6+ {[%clk 0:00:18]}  Kh8 {[%clk 0:00:04]} 39. Qxh6+ {[%clk 0:00:18]}  Kg8 {[%clk 0:00:05]} 40. Re7 {[%clk 0:00:15]}  Qb1+ {[%clk 0:00:05]} 41. Kh2 {[%clk 0:00:15]}  Qb8+ {[%clk 0:00:06]} 42. g3 {[%clk 0:00:15]}  Rxf3 {[%clk 0:00:02]} 43. Qg7# {[%clk 0:00:15]} 1-0


[Site "https://www.chess.com"]

[Event "Titled Tuesday Blitz April 05 Early 2022"]
[White "Shandrygin, Nikita"]
[Black "Hoffmann, Asa"]
[WhiteFideId "24198668"]
[BlackFideId "2001470"]
[WhiteElo "2323"]
[BlackElo "2117"]
[Result "0-1"]
[Round "06"]
[TimeControl "180+1"]
[Date "2022.04.05"]
[WhiteClock "0:00:05"]
[BlackClock "0:01:17"]

1. Nf3 {[%clk 0:03:00]}  d6 {[%clk 0:02:53]} 2. g3 {[%clk 0:03:01]}  e5 {[%clk 0:02:52]} 3. Bg2 {[%clk 0:02:59]}  Nc6 {[%clk 0:02:52]} 4. d4 {[%clk 0:02:57]}  e4 {[%clk 0:02:51]} 5. Nfd2 {[%clk 0:02:57]}  d5 {[%clk 0:02:51]} 6. c4 {[%clk 0:02:56]}  Nf6 {[%clk 0:02:50]} 7. cxd5 {[%clk 0:02:55]}  Qxd5 {[%clk 0:02:46]} 8. e3 {[%clk 0:02:53]}  Bf5 {[%clk 0:02:42]} 9. Nc3 {[%clk 0:02:52]}  Qe6 {[%clk 0:02:38]} 10. Qb3 {[%clk 0:02:36]}  Qxb3 {[%clk 0:02:34]} 11. axb3 {[%clk 0:02:36]}  Bb4 {[%clk 0:02:33]} 12. h3 {[%clk 0:02:32]}  O-O {[%clk 0:02:31]} 13. Ke2 {[%clk 0:02:32]}  Rfe8 {[%clk 0:02:29]} 14. g4 {[%clk 0:02:28]}  Bg6 {[%clk 0:02:26]} 15. g5 {[%clk 0:02:28]}  Bxc3 {[%clk 0:02:25]} 16. bxc3 {[%clk 0:02:28]}  Nd5 {[%clk 0:02:24]} 17. Bb2 {[%clk 0:02:28]}  a5 {[%clk 0:02:21]} 18. h4 {[%clk 0:02:24]}  f5 {[%clk 0:02:18]} 19. h5 {[%clk 0:01:58]}  Bf7 {[%clk 0:02:16]} 20. c4 {[%clk 0:01:50]}  Ndb4 {[%clk 0:02:14]} 21. g6 {[%clk 0:01:46]}  hxg6 {[%clk 0:02:13]} 22. h6 {[%clk 0:01:46]}  Nd3 {[%clk 0:02:09]} 23. Bc3 {[%clk 0:01:46]}  gxh6 {[%clk 0:01:59]} 24. Rxh6 {[%clk 0:01:44]}  Kf8 {[%clk 0:01:58]} 25. f3 {[%clk 0:01:35]}  exf3+ {[%clk 0:01:53]} 26. Bxf3 {[%clk 0:01:26]}  Ndb4 {[%clk 0:01:50]} 27. d5 {[%clk 0:01:17]}  Ne5 {[%clk 0:01:44]} 28. Rxa5 {[%clk 0:01:17]}  Rxa5 {[%clk 0:01:42]} 29. Bxb4+ {[%clk 0:01:16]}  Kg7 {[%clk 0:01:42]} 30. Bxa5 {[%clk 0:01:11]}  Kxh6 {[%clk 0:01:41]} 31. Bxc7 {[%clk 0:01:12]}  Nd7 {[%clk 0:01:38]} 32. e4 {[%clk 0:00:58]}  g5 {[%clk 0:01:37]} 33. Kf2 {[%clk 0:00:42]}  Bg6 {[%clk 0:01:36]} 34. exf5 {[%clk 0:00:39]}  Bxf5 {[%clk 0:01:35]} 35. d6 {[%clk 0:00:32]}  b6 {[%clk 0:01:32]} 36. b4 {[%clk 0:00:27]}  Re5 {[%clk 0:01:28]} 37. Nf1 {[%clk 0:00:19]}  g4 {[%clk 0:01:27]} 38. Bg2 {[%clk 0:00:18]}  Kg5 {[%clk 0:01:27]} 39. Ne3 {[%clk 0:00:17]}  Be6 {[%clk 0:01:26]} 40. c5 {[%clk 0:00:07]}  bxc5 {[%clk 0:01:25]} 41. b5 {[%clk 0:00:08]}  c4 {[%clk 0:01:23]} 42. b6 {[%clk 0:00:09]}  Rb5 {[%clk 0:01:23]} 43. Bc6 {[%clk 0:00:08]}  Rb2+ {[%clk 0:01:22]} 44. Ke1 {[%clk 0:00:09]}  g3 {[%clk 0:01:21]} 45. Bxd7 {[%clk 0:00:09]}  Bxd7 {[%clk 0:01:20]} 46. b7 {[%clk 0:00:10]}  Rxb7 {[%clk 0:01:20]} 47. Nxc4 {[%clk 0:00:07]}  Rb1+ {[%clk 0:01:17]} 48. Ke2 {[%clk 0:00:05]}  Bg4+ {[%clk 0:01:17]} 0-1


[Site "https://www.chess.com"]